bitfinex/quotes_BTCUSD_20251027
["timestamp","ask_amount","ask_price","bid_price","bid_amount"]
[1761526349315,0.00102481,114690.0,114680.0,1.47559075]
[1761526350906,0.00102481,114690.0,114680.0,1.99674488]
[1761526351105,0.00102481,114690.0,114680.0,2.61100388]
[1761526351639,0.00102481,114690.0,114680.0,2.58279187]
[1761526351850,0.18310258,114740.0,114730.0,0.17432232]
[1761526352044,0.18310258,114740.0,114730.0,0.43521852]
[1761526352252,0.18310258,114740.0,114730.0,0.41778629]
[1761526352895,0.54400046,114740.0,114730.0,0.24346397]
[1761526353570,0.78363281,114750.0,114730.0,0.41778629]
[1761526353803,0.5954275,114760.0,114740.0,0.28155371]
[1761526354019,0.5439875,114760.0,114740.0,0.264123]
[1761526354605,0.5439875,114760.0,114750.0,0.01742919]
[1761526355016,0.19608962,114760.0,114750.0,0.43510013]
[1761526355209,0.19608962,114760.0,114750.0,0.41767094]
[1761526355549,0.5569875,114760.0,114750.0,0.41767094]
[1761526355807,0.19608962,114760.0,114750.0,0.41767094]
[1761526356224,0.5569875,114760.0,114750.0,0.24337901]
[1761526356558,0.5439875,114760.0,114750.0,0.41767094]
[1761526356979,0.5589875,114760.0,114750.0,0.24637901]
[1761526357825,0.5589875,114760.0,114750.0,0.003]
[1761526358231,0.19808962,114760.0,114750.0,0.003]
[1761526358402,0.5589875,114760.0,114750.0,0.003]
[1761526359429,0.7125075,114760.0,114750.0,0.003]
[1761526363005,1.07340538,114760.0,114750.0,0.003]
[1761526363212,0.7125075,114760.0,114750.0,0.003]
[1761526366993,0.35160962,114760.0,114750.0,0.003]
[1761526367155,0.7125075,114760.0,114750.0,0.003]
[1761526368320,0.19808962,114760.0,114750.0,0.003]
[1761526368463,0.18927675,114760.0,114750.0,0.17729193]
[1761526368657,0.18927675,114760.0,114750.0,0.19472112]
[1761526369166,0.18927675,114760.0,114750.0,0.28454013]
[1761526369167,0.55017463,114760.0,114750.0,0.28454013]
[1761526369390,0.18927675,114760.0,114750.0,0.26711094]
[1761526369595,0.55017463,114760.0,114750.0,0.26711094]
[1761526370193,0.55017463,114760.0,114750.0,0.09281901]
[1761526370841,0.70369463,114760.0,114750.0,0.09281901]
[1761526371420,0.55017463,114760.0,114750.0,0.09281901]
[1761526371621,0.70369463,114760.0,114750.0,0.003]
[1761526376176,0.34279675,114760.0,114750.0,0.09281901]
[1761526376486,0.55017463,114760.0,114750.0,0.09281901]
[1761526376652,0.55017463,114760.0,114750.0,0.28454013]
[1761526376860,0.55017463,114760.0,114750.0,0.26711094]
[1761526377401,0.18927675,114760.0,114750.0,0.26711094]
[1761526377760,0.18927675,114760.0,114750.0,0.42063094]
[1761526380274,0.55017463,114760.0,114750.0,0.42063094]
[1761526381189,0.18927675,114760.0,114750.0,0.42063094]
[1761526381304,0.015,114760.0,114750.0,0.42063094]
[1761526381500,0.18927675,114760.0,114750.0,0.42063094]
[1761526382221,0.55017463,114760.0,114750.0,0.24633901]
[1761526382395,0.55017463,114760.0,114750.0,0.09281901]
[1761526382622,0.55017463,114760.0,114750.0,0.26711094]
[1761526382831,0.70365463,114760.0,114750.0,0.003]
[1761526384237,0.34275675,114760.0,114750.0,0.17729193]
[1761526384472,0.70365463,114760.0,114750.0,0.003]
[1761526384856,0.55017463,114760.0,114750.0,0.003]
[1761526385269,0.55017463,114760.0,114750.0,0.19472112]
[1761526386432,0.55017463,114760.0,114750.0,0.28454013]
[1761526386634,0.18927675,114760.0,114750.0,0.26711094]
[1761526387416,0.55017463,114760.0,114750.0,0.26711094]
[1761526387626,0.015,114760.0,114750.0,0.62800882]
[1761526387825,0.015,114760.0,114750.0,0.26711094]
[1761526388437,0.015,114760.0,114750.0,0.62800882]
[1761526389515,0.015,114760.0,114750.0,0.26711094]
[1761526389718,0.015,114760.0,114750.0,0.62800882]
[1761526390060,0.015,114760.0,114750.0,0.26711094]
[1761526392277,0.015,114760.0,114750.0,0.62800882]
[1761526392694,0.015,114760.0,114750.0,1.3289067]
[1761526392930,0.015,114760.0,114750.0,0.66283094]
[1761526393130,0.015,114760.0,114750.0,1.3846267]
[1761526393378,0.015,114760.0,114750.0,1.02372882]
[1761526393627,0.015,114760.0,114750.0,1.3846267]
[1761526393784,0.015,114760.0,114750.0,0.66283094]
[1761526394011,0.015,114760.0,114750.0,1.02372882]
[1761526394615,0.015,114760.0,114750.0,0.76059094]
[1761526394826,0.36089788,114770.0,114760.0,0.17427675]
[1761526395027,0.54385865,114780.0,114770.0,0.17426156]
[1761526395229,0.54385865,114780.0,114770.0,0.41756057]
[1761526396205,0.56485865,114780.0,114770.0,0.42064553]
[1761526397457,0.20396077,114780.0,114770.0,0.42064553]
[1761526397807,0.56485865,114780.0,114770.0,0.42064553]
[1761526399457,0.02971231,114780.0,114770.0,0.42064553]
[1761526399748,0.20395869,114780.0,114770.0,0.42064553]
[1761526399956,0.021,114780.0,114770.0,0.42064553]
[1761526400998,0.19524638,114780.0,114770.0,0.42064553]
[1761526401200,0.021,114780.0,114770.0,0.42064553]
[1761526401407,0.19524638,114780.0,114770.0,0.24638397]
[1761526401765,0.55614426,114780.0,114770.0,0.09290397]
[1761526402047,0.55614426,114780.0,114770.0,0.24634397]
[1761526403945,0.55614426,114780.0,114770.0,0.09290397]
[1761526404146,0.55614426,114780.0,114770.0,0.24634397]
[1761526406410,0.91704214,114780.0,114770.0,0.09290397]
[1761526406965,0.55614426,114780.0,114770.0,0.09290397]
[1761526407152,0.55614426,114780.0,114770.0,0.00308496]
[1761526407153,1.07048214,114780.0,114770.0,0.00308496]
[1761526412619,0.70958426,114780.0,114770.0,0.00308496]
[1761526413759,0.34868638,114780.0,114770.0,0.00308496]
[1761526415309,0.19524638,114780.0,114770.0,0.09290397]
[1761526415675,0.19524638,114780.0,114770.0,0.26716553]
[1761526417478,0.19524638,114780.0,114770.0,0.09290397]
[1761526417682,0.19524638,114780.0,114770.0,0.11033012]
[1761526418047,0.19524638,114780.0,114770.0,0.28459168]
[1761526418230,0.19524638,114780.0,114770.0,0.26716553]
[1761526419461,0.19524638,114780.0,114770.0,0.09290397]
[1761526423775,0.19524638,114780.0,114770.0,0.26716553]
[1761526424871,0.021,114780.0,114770.0,0.26716553]
[1761526427125,0.18314657,114790.0,114780.0,0.17424638]
[1761526427328,0.18314657,114790.0,114780.0,0.28149002]
[1761526427532,0.18314657,114790.0,114780.0,0.26406539]
[1761526428244,0.0002,114790.0,114780.0,0.41750539]
[1761526428412,0.0192,114790.0,114780.0,0.41950539]
[1761526428821,0.0192,114790.0,114780.0,0.51950539]
[1761526430093,0.0002,114790.0,114780.0,0.51750539]
[1761526430496,0.0172,114790.0,114780.0,0.51950539]
[1761526430935,0.1914312,114790.0,114780.0,0.34525901]
[1761526431152,0.0172,114790.0,114780.0,0.51950539]
[1761526431782,0.51203688,114790.0,114780.0,0.34525901]
[1761526432124,0.0172,114790.0,114780.0,0.51950539]
[1761526432668,0.0172,114790.0,114780.0,0.36606539]
[1761526432871,0.0172,114790.0,114780.0,0.51950539]
[1761526434261,0.0172,114790.0,114780.0,0.52814817]
[1761526434645,0.0172,114790.0,114780.0,0.51950539]
[1761526435713,0.0172,114790.0,114780.0,0.5281665]
[1761526439399,0.0172,114790.0,114780.0,1.18877218]
[1761526439505,0.0172,114790.0,114780.0,0.8681665]
[1761526439709,0.0172,114790.0,114780.0,1.18877218]
[1761526441618,0.0172,114790.0,114780.0,0.8681665]
[1761526441997,0.0122,114790.0,114780.0,0.8681665]
[1761526443328,0.0122,114790.0,114780.0,0.70606539]
[1761526443494,0.0122,114790.0,114780.0,0.85946539]
[1761526443699,0.0122,114790.0,114780.0,0.51946539]
[1761526445274,0.0122,114790.0,114780.0,0.36606539]
[1761526445424,0.0122,114790.0,114780.0,0.51946539]
[1761526448677,0.1864312,114790.0,114780.0,0.36606539]
[1761526448856,0.1864312,114790.0,114780.0,0.51946539]
[1761526449577,0.0122,114790.0,114780.0,0.51946539]
[1761526453061,0.0122,114790.0,114780.0,0.85946539]
[1761526453253,0.0122,114790.0,114780.0,1.18007107]
[1761526454449,0.0122,114790.0,114780.0,1.2062076]
[1761526455721,0.0122,114790.0,114780.0,0.88560192]
[1761526457354,0.0122,114790.0,114780.0,1.2062076]
[1761526461807,0.0122,114790.0,114780.0,1.24238988]
[1761526462823,0.0122,114790.0,114780.0,0.9217842]
[1761526463139,0.0122,114790.0,114780.0,1.24238988]
[1761526464067,0.0122,114790.0,114780.0,0.9217842]
[1761526464199,0.0122,114790.0,114780.0,1.24238988]
[1761526467784,0.0122,114790.0,114780.0,0.88560192]
[1761526468699,0.0122,114790.0,114780.0,0.73220192]
[1761526468904,0.0122,114790.0,114780.0,0.94128192]
[1761526470927,0.0122,114790.0,114780.0,0.73220192]
[1761526471065,0.0122,114790.0,114780.0,0.94128192]
[1761526473739,0.0122,114790.0,114780.0,1.30176262]
[1761526473937,0.0122,114790.0,114780.0,1.66224332]
[1761526474493,0.0122,114790.0,114780.0,0.94128192]
[1761526474701,0.0122,114790.0,114780.0,1.30176262]
[1761526474903,0.0122,114790.0,114780.0,0.94128192]
[1761526475136,0.0122,114790.0,114780.0,1.30176262]
[1761526475721,0.0002,114800.0,114790.0,0.5142312]
[1761526475919,0.0002,114800.0,114790.0,0.60405021]
[1761526477693,0.0002,114800.0,114790.0,0.66656896]
[1761526478391,0.0002,114800.0,114790.0,0.60405021]
[1761526478626,0.0142,114800.0,114790.0,0.60505021]
[1761526479582,0.54889672,114800.0,114790.0,0.26505021]
[1761526479782,0.54889672,114800.0,114790.0,0.41841021]
[1761526479988,0.54889672,114800.0,114790.0,0.09081901]
[1761526480791,0.70225672,114800.0,114790.0,0.001]
[1761526481163,0.72840102,114800.0,114790.0,0.001]
[1761526486954,0.21456032,114800.0,114790.0,0.1752312]
[1761526487300,0.18841602,114800.0,114790.0,0.28247333]
[1761526487599,0.18841602,114800.0,114790.0,0.26505021]
[1761526490188,0.54889672,114800.0,114790.0,0.09081901]
[1761526491836,0.21455642,114800.0,114790.0,0.09081901]
[1761526492039,0.57503712,114800.0,114790.0,0.09081901]
[1761526492242,0.57503712,114800.0,114790.0,0.001]
[1761526492652,0.21455642,114800.0,114790.0,0.001]
[1761526492892,0.21455642,114800.0,114790.0,0.26505021]
[1761526493099,0.36791642,114800.0,114790.0,0.26505021]
[1761526494065,0.0403404,114800.0,114790.0,0.26505021]
[1761526494265,0.0142,114800.0,114790.0,0.26505021]
[1761526494901,0.0142,114800.0,114790.0,0.75841021]
[1761526501573,0.0142,114800.0,114790.0,1.11889091]
[1761526501779,0.0142,114800.0,114790.0,1.18140966]
[1761526502559,0.0142,114800.0,114790.0,1.20754457]
[1761526502967,0.0142,114800.0,114790.0,1.24372685]
[1761526504491,0.0142,114800.0,114790.0,1.20754457]
[1761526505324,0.0142,114800.0,114790.0,0.84706387]
[1761526506441,0.0142,114800.0,114790.0,1.20754457]
[1761526510353,0.0142,114800.0,114790.0,0.84706387]
[1761526510524,0.0142,114800.0,114790.0,1.20754457]
[1761526512057,0.0142,114800.0,114790.0,1.18140966]
[1761526512235,0.0142,114800.0,114790.0,0.82092896]
[1761526512436,0.0142,114800.0,114790.0,1.18140966]
[1761526513106,0.01391516,114800.0,114790.0,1.18140966]
[1761526513347,0.01362875,114800.0,114790.0,1.18140966]
[1761526516448,0.01362875,114800.0,114790.0,1.21759194]
[1761526516662,0.01362875,114800.0,114790.0,1.18120474]
[1761526517434,0.00347361,114810.0,114800.0,0.51421602]
[1761526517617,0.00347361,114810.0,114800.0,1.02708711]
[1761526517840,0.00347361,114810.0,114800.0,0.96451573]
[1761526518837,0.00347361,114810.0,114800.0,1.02708711]
[1761526519587,0.01347361,114810.0,114800.0,1.12908711]
[1761526528058,0.01347361,114810.0,114800.0,1.52575009]
[1761526528422,0.01347361,114810.0,114800.0,1.69930751]
[1761526528778,0.01347361,114810.0,114800.0,1.33882681]
[1761526529371,0.00347361,114810.0,114800.0,1.33782681]
[1761526529557,0.00347361,114810.0,114800.0,1.33682681]
[1761526529765,0.00447361,114810.0,114800.0,1.33882681]
[1761526531651,0.00447361,114810.0,114800.0,1.69930751]
[1761526532408,0.00447361,114810.0,114800.0,1.33882681]
[1761526533406,0.00447361,114810.0,114800.0,1.69930751]
[1761526534235,0.00447361,114810.0,114800.0,1.41580569]
[1761526535429,0.00447361,114810.0,114800.0,1.77628639]
[1761526535784,0.00447361,114810.0,114800.0,1.69569739]
[1761526538452,0.00447361,114810.0,114800.0,1.05532499]
[1761526538639,0.00447361,114810.0,114800.0,1.69569739]
[1761526540079,0.00447361,114810.0,114800.0,1.37551119]
[1761526540486,0.00447361,114810.0,114800.0,1.5744712]
[1761526541256,0.00447361,114810.0,114800.0,0.80914272]
[1761526541490,0.00447361,114810.0,114800.0,0.94792637]
[1761526541857,0.00447361,114810.0,114800.0,0.92179756]
[1761526542904,0.00447361,114810.0,114800.0,0.91979756]
[1761526543100,0.00347361,114810.0,114800.0,0.92079756]
[1761526543484,0.01547361,114810.0,114800.0,0.92179756]
[1761526554428,0.33565981,114810.0,114800.0,0.92179756]
[1761526554548,0.01547361,114810.0,114800.0,0.92179756]
[1761526560695,0.00347361,114810.0,114800.0,0.91979756]
[1761526562831,0.49786066,114810.0,114800.0,0.18981901]
[1761526563067,0.65114066,114810.0,114800.0,0.14690919]
[1761526564265,0.70682066,114810.0,114800.0,0.14690919]
[1761526564678,0.70682066,114810.0,114800.0,0.1]
[1761526565941,0.17421602,114800.0,114790.0,0.04690919]
[1761526566068,0.49440222,114800.0,114790.0,0.04690919]
[1761526566668,0.81458842,114800.0,114790.0,0.04690919]
[1761526567300,0.1742312,114790.0,114780.0,0.04690919]
[1761526567508,0.6476974,114790.0,114780.0,0.04690919]
[1761526569490,0.3275112,114790.0,114780.0,0.04690919]
[1761526569695,0.6476974,114790.0,114780.0,0.04690919]
[1761526575575,0.3275112,114790.0,114780.0,0.04690919]
[1761526575746,0.6476974,114790.0,114780.0,0.04690919]
[1761526579237,0.9876974,114790.0,114780.0,0.04690919]
[1761526581471,0.17424638,114780.0,114770.0,0.04699415]
[1761526581706,0.55015258,114780.0,114770.0,0.04699415]
[1761526588632,0.51426156,114770.0,114760.0,0.04688761]
[1761526588854,0.21045903,114760.0,114750.0,0.06248253]
[1761526589062,0.17429193,114750.0,114740.0,0.06248253]
[1761526589208,0.70351813,114750.0,114740.0,0.06248253]
[1761526590634,0.17432232,114730.0,114720.0,0.04560748]
[1761526590869,0.32768232,114730.0,114720.0,0.12052325]
[1761526591323,0.32768232,114730.0,114720.0,0.0943671]
[1761526591498,0.32768232,114730.0,114720.0,0.12052325]
[1761526591866,0.32776688,114730.0,114720.0,0.12052325]
[1761526593909,0.32776688,114730.0,114720.0,0.0943671]
[1761526595791,0.64795308,114730.0,114720.0,0.0943671]
[1761526595998,0.64795308,114730.0,114720.0,0.00454809]
[1761526597697,0.68878958,114730.0,114720.0,0.00454809]
[1761526599732,0.32776688,114730.0,114720.0,0.00454809]
[1761526600062,0.68878958,114730.0,114720.0,0.00454809]
[1761526603500,0.68878958,114730.0,114700.0,0.20052559]
[1761526603501,0.17435271,114710.0,114700.0,0.20052559]
[1761526603699,0.17435271,114710.0,114700.0,0.12052536]
[1761526604028,0.17435271,114710.0,114700.0,0.29489327]
[1761526605458,0.17435271,114710.0,114700.0,0.12052536]
[1761526605805,0.53537541,114710.0,114700.0,0.12052536]
[1761526606043,0.68877541,114710.0,114700.0,0.12052536]
[1761526606937,0.68877541,114710.0,114700.0,0.09436768]
[1761526607321,0.32775271,114710.0,114700.0,0.09436768]
[1761526607484,0.68877541,114710.0,114700.0,0.09436768]
[1761526609554,0.32775271,114710.0,114700.0,0.09436768]
[1761526611420,0.68877541,114710.0,114700.0,0.09436768]
[1761526611562,0.32775271,114710.0,114700.0,0.09436768]
[1761526612383,0.68877541,114710.0,114700.0,0.09436768]
[1761526613282,0.32775271,114710.0,114700.0,0.09436768]
[1761526614017,0.68877541,114710.0,114700.0,0.09436768]
[1761526617452,0.32775271,114710.0,114700.0,0.09436768]
[1761526617658,0.68877541,114710.0,114700.0,0.09436768]
[1761526623218,0.32775271,114710.0,114700.0,0.09436768]
[1761526623517,0.68877541,114710.0,114700.0,0.09436768]
[1761526627310,0.68877541,114710.0,114700.0,0.12052947]
[1761526628574,0.68877541,114710.0,114700.0,0.03071046]
[1761526631843,0.32775271,114710.0,114700.0,0.03071046]
[1761526632239,0.68877541,114710.0,114700.0,0.03071046]
[1761526634037,0.17435064,114720.0,114700.0,0.29489738]
[1761526634245,0.17435271,114710.0,114700.0,0.80932008]
[1761526634449,0.17435271,114710.0,114700.0,0.44829738]
[1761526635065,0.17435271,114710.0,114700.0,0.27392947]
[1761526635260,0.53537541,114710.0,114700.0,0.27392947]
[1761526635701,0.53537541,114710.0,114700.0,0.12052947]
[1761526636077,0.53537541,114710.0,114700.0,0.29489738]
[1761526636680,0.17435271,114710.0,114700.0,0.29489738]
[1761526639510,0.17435271,114710.0,114700.0,0.12052947]
[1761526639738,0.53537541,114710.0,114700.0,0.12052947]
[1761526640149,0.68877541,114710.0,114700.0,0.12052947]
[1761526641516,0.32775271,114710.0,114700.0,0.29489738]
[1761526641724,0.32775271,114710.0,114700.0,0.12052947]
[1761526643097,0.32775271,114710.0,114700.0,0.29489738]
[1761526644104,0.32775064,114720.0,114700.0,0.29489738]
[1761526644334,0.32775064,114720.0,114700.0,0.71840261]
[1761526644532,0.32775064,114720.0,114700.0,0.65592008]
[1761526644749,0.68877334,114720.0,114700.0,0.65592008]
[1761526645173,0.17435271,114710.0,114700.0,0.45737991]
[1761526645712,0.68877334,114720.0,114700.0,0.45737991]
[1761526646399,0.32775064,114720.0,114710.0,0.17435271]
[1761526646589,0.32773751,114720.0,114710.0,0.26417172]
[1761526647048,0.32773751,114720.0,114710.0,0.29033111]
[1761526651603,0.33504672,114720.0,114710.0,0.28893046]
[1761526651779,0.33504672,114720.0,114710.0,0.1159784]
[1761526652321,0.69606942,114720.0,114710.0,0.1159784]
[1761526657346,0.69606942,114720.0,114710.0,0.2159784]
[1761526657787,0.33504672,114720.0,114710.0,0.2159784]
[1761526657981,0.33504672,114720.0,114710.0,0.39033111]
[1761526658641,0.16070921,114720.0,114710.0,0.39033111]
[1761526661018,0.00730921,114720.0,114710.0,0.71125264]
[1761526661194,0.00730921,114720.0,114710.0,1.05125264]
[1761526662498,0.00730921,114720.0,114710.0,1.11373517]
[1761526663729,0.00730921,114720.0,114710.0,1.16949517]
[1761526664389,0.00730921,114720.0,114710.0,0.84857364]
[1761526664707,0.00730921,114720.0,114710.0,1.16949517]
[1761526677381,0.00730921,114720.0,114710.0,1.11373517]
[1761526677592,0.00730921,114720.0,114710.0,1.32277517]
[1761526683144,0.00730921,114720.0,114710.0,1.35895745]
[1761526683288,0.00730921,114720.0,114710.0,1.45895745]
[1761526685772,0.00730921,114720.0,114710.0,1.77987898]
[1761526685974,0.00730921,114720.0,114710.0,2.23162045]
[1761526686161,0.00730921,114720.0,114710.0,2.12738344]
[1761526686162,1e-08,114720.0,114710.0,2.12738344]
[1761526686778,1e-08,114720.0,114710.0,2.13738343]
[1761526687260,1e-08,114720.0,114710.0,2.21436231]
[1761526691037,1e-08,114720.0,114710.0,2.20436232]
[1761526691204,1e-08,114720.0,114710.0,2.21436231]
[1761526692617,1e-08,114720.0,114710.0,2.20436232]
[1761526692821,1e-08,114720.0,114710.0,2.21436231]
[1761526694672,1e-08,114720.0,114710.0,2.20436232]
[1761526694883,1e-08,114720.0,114710.0,1.50421925]
[1761526695016,1e-08,114720.0,114710.0,2.13606232]
[1761526695215,1e-08,114720.0,114710.0,2.14606231]
[1761526695982,1e-08,114730.0,114720.0,0.97051977]
[1761526696205,1e-08,114730.0,114720.0,1.70218184]
[1761526696766,1e-08,114730.0,114720.0,1.72706054]
[1761526697224,1e-08,114730.0,114720.0,1.71706055]
[1761526697418,1e-08,114730.0,114720.0,1.72706054]
[1761526698289,1e-08,114730.0,114720.0,1.71706055]
[1761526698494,1e-08,114730.0,114720.0,1.72706054]
[1761526698877,1e-08,114730.0,114720.0,2.37660854]
[1761526699280,1e-08,114730.0,114720.0,2.44358743]
[1761526699892,1e-08,114730.0,114720.0,2.45358742]
[1761526700330,1e-08,114730.0,114720.0,2.44358743]
[1761526700585,1e-08,114730.0,114720.0,2.45358742]
[1761526700913,1e-08,114730.0,114720.0,2.02756742]
[1761526701848,1e-08,114730.0,114720.0,1.79868804]
[1761526702456,1e-08,114730.0,114720.0,1.97908604]
[1761526703844,1e-08,114730.0,114720.0,2.11645854]
[1761526706888,1e-08,114730.0,114720.0,1.89745855]
[1761526707090,0.00225059,114740.0,114730.0,0.5505046]
[1761526707316,0.00225059,114740.0,114730.0,1.24857456]
[1761526707605,0.00225059,114740.0,114730.0,1.1703323]
[1761526707763,0.00225059,114740.0,114730.0,0.9613723]
[1761526707977,0.00225059,114740.0,114730.0,1.1703323]
[1761526708227,0.00225059,114740.0,114730.0,1.24854736]
[1761526708882,0.00225059,114740.0,114730.0,1.03958736]
[1761526709084,0.00225059,114740.0,114730.0,1.24854736]
[1761526709540,0.00225059,114740.0,114730.0,1.03958736]
[1761526709750,0.00225059,114740.0,114730.0,1.24854736]
[1761526709944,0.00225059,114740.0,114730.0,1.03958736]
[1761526710144,0.00225059,114740.0,114730.0,1.24854736]
[1761526711326,0.00225059,114740.0,114730.0,1.03958736]
[1761526711528,0.00225059,114740.0,114730.0,1.24854736]
[1761526712502,1e-08,114740.0,114730.0,2.10847534]
[1761526712703,1e-08,114740.0,114730.0,2.02526566]
[1761526712913,1e-08,114740.0,114730.0,1.9470506]
[1761526713422,1e-08,114740.0,114730.0,1.9040816]
[1761526713976,1e-08,114740.0,114730.0,1.8521616]
[1761526715284,1e-08,114740.0,114730.0,1.93029368]
[1761526717123,0.0248787,114750.0,114740.0,0.9504894]
[1761526717311,0.0248787,114750.0,114740.0,1.36122994]
[1761526717894,0.0248787,114750.0,114740.0,1.38737226]
[1761526719839,0.0248787,114750.0,114740.0,2.09582103]
[1761526720036,0.0248787,114750.0,114740.0,2.18393681]
[1761526720239,1e-08,114750.0,114740.0,2.18393681]
[1761526722620,1e-08,114750.0,114740.0,2.1939368]
[1761526723164,1e-08,114750.0,114740.0,2.18393681]
[1761526723390,1e-08,114750.0,114740.0,2.1939368]
[1761526723575,1e-08,114750.0,114740.0,2.1824358]
[1761526723925,1e-08,114750.0,114740.0,2.17243581]
[1761526724071,1e-08,114750.0,114740.0,2.1824358]
[1761526724429,1e-08,114750.0,114740.0,2.10432001]
[1761526725029,0.03834093,114760.0,114750.0,0.55047421]
[1761526725232,0.03834093,114760.0,114750.0,1.59264794]
[1761526727083,0.03834093,114760.0,114750.0,1.51458352]
[1761526727282,0.03834093,114760.0,114750.0,0.79349322]
[1761526727486,0.03834093,114760.0,114750.0,1.59264794]
[1761526728479,1e-08,114760.0,114750.0,2.56085109]
[1761526728781,1e-08,114760.0,114750.0,2.58085107]
[1761526728938,1e-08,114760.0,114750.0,2.60698863]
[1761526729362,1e-08,114760.0,114750.0,2.24644348]
[1761526730149,1e-08,114760.0,114750.0,2.60698863]
[1761526730910,1e-08,114760.0,114750.0,2.59698864]
[1761526731116,1e-08,114760.0,114750.0,2.60698863]
[1761526731776,0.08949287,114770.0,114760.0,2.45681433]
[1761526731985,0.08949287,114770.0,114760.0,2.60235334]
[1761526732192,0.08949287,114770.0,114760.0,2.55702134]
[1761526732386,0.08949287,114770.0,114760.0,2.75702134]
[1761526732587,0.08949287,114770.0,114760.0,2.30934832]
[1761526732809,0.08949287,114770.0,114760.0,2.22172832]
[1761526732984,0.08949287,114770.0,114760.0,2.19948132]
[1761526733190,0.08949287,114770.0,114760.0,2.18906532]
[1761526733419,0.08949287,114770.0,114760.0,2.12257232]
[1761526733829,0.08949287,114770.0,114760.0,2.11242432]
[1761526734920,0.08949287,114770.0,114760.0,2.06343932]
[1761526735270,0.08949287,114770.0,114760.0,1.67333317]
[1761526735438,0.08949287,114770.0,114760.0,1.56074517]
[1761526736095,0.08949287,114770.0,114760.0,1.67747217]
[1761526736719,0.08949287,114770.0,114760.0,1.56074517]
[1761526736850,0.08949287,114770.0,114760.0,1.36074517]
[1761526738216,0.08949287,114770.0,114760.0,1.28780761]
[1761526738617,0.08949287,114770.0,114760.0,1.20974319]
[1761526738795,0.08949287,114770.0,114760.0,1.17356091]
[1761526738996,0.08949287,114770.0,114760.0,1.23607146]
[1761526739744,0.08949287,114770.0,114760.0,1.17356091]
[1761526742449,0.08949287,114770.0,114760.0,0.87555539]
[1761526742846,0.08949287,114770.0,114760.0,1.23610054]
[1761526745314,0.08949287,114770.0,114760.0,1.27356091]
[1761526749215,0.08949287,114770.0,114760.0,0.99108018]
[1761526749537,0.08949287,114770.0,114760.0,1.35162533]
[1761526749744,0.08949287,114770.0,114760.0,1.41422668]
[1761526749923,0.08949287,114770.0,114760.0,1.33616226]
[1761526750888,0.08949287,114770.0,114760.0,0.97561711]
[1761526751327,0.08949287,114770.0,114760.0,1.33616226]
[1761526751539,0.08949287,114770.0,114760.0,0.97561711]
[1761526752543,0.08949287,114770.0,114760.0,1.33616226]
[1761526755177,0.08949287,114770.0,114760.0,0.97561711]
[1761526755375,0.62429958,114770.0,114760.0,0.76669711]
[1761526755582,0.62429958,114770.0,114760.0,0.23676275]
[1761526757158,0.26375443,114770.0,114760.0,0.23676275]
[1761526757330,0.62429958,114770.0,114760.0,0.23676275]
[1761526757531,0.62429958,114770.0,114760.0,0.4110395]
[1761526758037,0.26375443,114770.0,114760.0,0.4110395]
[1761526758235,0.62429958,114770.0,114760.0,0.4110395]
[1761526758958,0.62429958,114770.0,114760.0,0.23676275]
[1761526759693,0.62429958,114770.0,114760.0,0.4110395]
[1761526760589,0.26375443,114770.0,114760.0,0.4110395]
[1761526760749,0.62429958,114770.0,114760.0,0.4110395]
[1761526760946,0.62429958,114770.0,114760.0,0.23676275]
[1761526762502,0.77749958,114770.0,114760.0,0.1]
[1761526762700,0.17427675,114760.0,114750.0,0.04694374]
[1761526762904,0.5348219,114760.0,114750.0,0.13676275]
[1761526763521,0.56097066,114760.0,114750.0,0.13676275]
[1761526767566,0.56097066,114760.0,114750.0,0.04694374]
[1761526770798,0.20042551,114760.0,114750.0,0.04694374]
[1761526771150,0.56097066,114760.0,114750.0,0.04694374]
[1761526780788,0.20042551,114760.0,114750.0,0.04694374]
[1761526780911,0.56097066,114760.0,114750.0,0.04694374]
[1761526781117,0.20042551,114760.0,114750.0,0.04694374]
[1761526781318,0.56097066,114760.0,114750.0,0.04694374]
[1761526782004,0.20042551,114760.0,114750.0,0.04694374]
[1761526787346,0.52113873,114760.0,114750.0,0.04694374]
[1761526791268,0.17430712,114740.0,114730.0,0.2301093]
[1761526791453,0.17430712,114740.0,114730.0,0.13688991]
[1761526791663,0.49502034,114740.0,114730.0,0.13688991]
[1761526792352,0.17430712,114740.0,114730.0,0.13688991]
[1761526792549,0.17430712,114740.0,114730.0,0.08994617]
[1761526793256,0.17430712,114740.0,114730.0,0.26426849]
[1761526794057,0.17430712,114740.0,114730.0,0.31121223]
[1761526794212,0.17430712,114740.0,114730.0,0.26426849]
[1761526795484,0.17430712,114740.0,114730.0,0.08994617]
[1761526796570,0.17430712,114740.0,114730.0,0.26426849]
[1761526799488,0.17430712,114740.0,114730.0,0.08994617]
[1761526801070,0.17430712,114740.0,114730.0,0.26426849]
[1761526801605,0.17430712,114740.0,114730.0,0.08994617]
[1761526801960,0.17430712,114740.0,114730.0,0.26426849]
[1761526802198,0.17430712,114740.0,114730.0,0.08994617]
[1761526802566,0.17430712,114740.0,114730.0,0.26426849]
[1761526803577,0.17430712,114740.0,114730.0,0.08994617]
[1761526805501,0.17430712,114740.0,114730.0,0.26426849]
[1761526806209,0.02615403,114750.0,114740.0,0.17430712]
[1761526806459,0.17429193,114750.0,114740.0,0.26412613]
[1761526806696,0.36234199,114760.0,114740.0,0.26412613]
[1761526806906,0.33619058,114760.0,114740.0,0.26412613]
[1761526807397,0.33619058,114760.0,114750.0,0.02615141]
[1761526811241,0.6569038,114760.0,114750.0,0.02615141]
[1761526811833,0.6569038,114760.0,114740.0,0.08981901]
[1761526811834,0.17429193,114750.0,114740.0,0.08981901]
[1761526812015,0.49500515,114750.0,114740.0,0.11597163]
[1761526812413,0.49500515,114750.0,114740.0,0.02615262]
[1761526812726,0.17430712,114740.0,114730.0,0.00012716]
[1761526812978,0.49502034,114740.0,114730.0,0.11610025]
[1761526813169,0.49502034,114740.0,114730.0,0.08994617]
[1761526813673,0.64822034,114740.0,114730.0,0.08994617]
[1761526814166,0.32750712,114740.0,114730.0,0.08994617]
[1761526815286,0.32750712,114740.0,114730.0,0.00012716]
[1761526815615,0.64822034,114740.0,114730.0,0.00012716]
[1761526817792,0.32750712,114740.0,114730.0,0.00012716]
[1761526821774,0.68440262,114740.0,114730.0,0.00012716]
[1761526822445,0.3636894,114740.0,114730.0,0.00012716]
[1761526822652,0.68440262,114740.0,114730.0,0.00012716]
[1761526825218,1.02440262,114740.0,114730.0,0.00012716]
[1761526826447,1.11422163,114740.0,114730.0,0.00012716]
[1761526827816,1.36262163,114740.0,114730.0,0.00012716]
[1761526828026,1.45244064,114740.0,114730.0,0.00012716]
[1761526830811,1.36262163,114740.0,114730.0,0.00012716]
[1761526832278,1.43493485,114740.0,114730.0,1e-08]
[1761526832693,1.11422163,114740.0,114730.0,1e-08]